bitfinex/quotes_ETHUSD_20240710
["timestamp","ask_amount","ask_price","bid_price","bid_amount"]
[1720589888285,4.96578031,3114.4,3114.3,0.1131031]
[1720589888712,3.03925031,3114.4,3114.3,0.1131031]
[1720589888916,1.11272031,3114.4,3114.3,2.3810031]
[1720589889101,1.11272031,3114.4,3114.3,2.61910341]
[1720589891397,1.11255221,3114.4,3114.3,2.61910341]
[1720589892246,1.11255221,3114.4,3114.3,4.54569341]
[1720589892389,1.92573,3115.7,3114.8,2.3373]
[1720589892390,1.9258,3115.6,3114.8,2.3373]
[1720589892595,1.44805281,3115.5,3115.0,1.92616]
[1720589892793,1.44805281,3115.5,3115.2,2.3951]
[1720589892794,1.11225444,3115.4,3115.2,2.3951]
[1720589893038,1.92542,3116.2,3115.3,2.3951]
[1720589893222,1.11197789,3116.1,3115.5,2.569]
[1720589893536,1.11197789,3116.0,3115.7,2.3951]
[1720589893847,1.11197789,3115.9,3115.7,2.89792794]
[1720589894061,1.11197789,3115.8,3115.7,2.89792794]
[1720589894965,1.92542,3116.2,3115.7,2.89792794]
[1720589895127,1.92542,3116.2,3115.7,2.3951]
[1720589895329,1.11199087,3116.1,3115.7,2.3951]
[1720589895636,1.11200009,3116.0,3115.7,2.3951]
[1720589895832,1.11200009,3115.9,3115.7,2.3951]
[1720589896054,1.92542,3116.2,3115.7,2.3951]
[1720589896218,1.11202397,3116.1,3115.7,2.63461]
[1720589896415,1.11202397,3116.0,3115.7,2.63461]
[1720589896733,1.92542,3116.2,3115.7,2.63461]
[1720589896920,1.11201657,3116.1,3115.7,2.63461]
[1720589897114,1.92542,3116.2,3115.7,2.63461]
[1720589897115,1.11201657,3116.0,3115.7,2.63461]
[1720589897315,1.92554,3116.0,3115.7,2.3951]
[1720589897518,1.92542,3116.2,3114.9,7.47]
[1720589897519,3.03765657,3115.9,3115.2,2.4829]
[1720589897750,1.9258,3115.6,3115.2,2.73119]
[1720589898459,1.92574,3115.7,3115.2,2.73119]
[1720589898662,1.9258,3115.6,3115.2,2.4829]
[1720589898816,1.92597,3115.3,3114.8,2.4316]
[1720589899019,1.92586,3115.5,3114.8,2.4316]
[1720589899217,3.0381744,3115.4,3114.8,2.4316]
[1720589899458,1.92594,3115.4,3114.8,2.4316]
[1720589899616,1.92594,3115.4,3114.8,2.67476]
[1720589900459,1.92598,3115.3,3114.8,2.67476]
[1720589900970,1.92606,3115.2,3114.8,2.67476]
[1720589901970,5.53503699,3117.0,3114.5,1.92646]
[1720589901971,2.6538,3117.3,3115.5,2.281]
[1720589902134,1.92506,3116.8,3115.7,2.281]
[1720589902319,3.03715232,3116.7,3115.9,2.569]
[1720589902522,1.11203232,3116.6,3116.0,0.06416821]
[1720589902720,1.11203232,3116.5,3116.0,0.54349778]
[1720589902917,1.92512,3116.7,3116.0,0.54349778]
[1720589903157,1.11184343,3116.6,3116.0,0.54349778]
[1720589903355,1.11184343,3116.5,3115.7,2.281]
[1720589903563,1.92548,3116.1,3115.7,2.281]
[1720589903724,1.92565,3115.9,3115.3,2.4629]
[1720589903931,3.85131,3115.9,3115.3,2.4629]
[1720589904132,3.03777442,3115.8,3115.4,0.24629]
[1720589904332,1.92565,3115.9,3115.3,2.4629]
[1720589904333,1.92575,3115.7,3115.3,2.4629]
[1720589904663,3.0,3116.6,3115.3,2.4629]
[1720589904861,1.92573,3115.7,3115.3,2.4629]
[1720589905357,1.92573,3115.7,3115.4,0.25270885]
[1720589905737,1.92558,3116.0,3115.4,0.25270885]
[1720589905738,1.92571,3115.8,3115.4,0.25270885]
[1720589906067,1.92571,3115.8,3115.4,0.31689653]
[1720589906267,3.0,3116.3,3115.3,2.4629]
[1720589906268,1.92575,3115.7,3115.3,2.4629]
[1720589906432,1.92567,3115.8,3115.3,2.52708873]
[1720589906770,1.92567,3115.8,3115.3,3.0366976]
[1720589907067,3.0,3116.3,3115.3,3.0366976]
[1720589907068,1.92556,3116.0,3115.3,3.0366976]
[1720589907259,1.11208627,3115.9,3115.3,3.0366976]
[1720589907457,1.92561,3115.9,3115.3,3.0366976]
[1720589907660,1.92567,3115.8,3115.4,0.30366976]
[1720589907844,1.92567,3115.8,3115.3,2.4629]
[1720589908048,1.1121322,3115.7,3115.3,2.4629]
[1720589908259,1.92567,3115.8,3115.3,2.4629]
[1720589908436,1.9258,3115.6,3115.3,2.4629]
[1720589908633,1.92585,3115.5,3115.3,2.4629]
[1720589908971,1.92585,3115.5,3115.0,2.3346]
[1720589909182,1.92585,3115.5,3115.1,0.23987927]
[1720589909467,1.92574,3115.7,3115.1,0.23987927]
[1720589909670,3.03797162,3115.6,3115.2,0.06418921]
[1720589909833,1.92593,3115.4,3115.0,2.3346]
[1720589910034,1.92593,3115.4,3115.0,3.507686]
[1720589910661,1.92593,3115.4,3115.1,0.0641947]
[1720589911881,1.9258,3115.6,3115.1,0.0641947]
[1720589912238,1.92564,3115.9,3115.1,0.0641947]
[1720589912466,1.11214639,3115.8,3115.2,0.35718807]
[1720589912777,1.11214639,3115.7,3115.3,0.06418785]
[1720589912978,1.11214639,3115.6,3115.3,0.06418785]
[1720589913277,0.492528,3116.3,3115.3,0.06418785]
[1720589913278,1.9254,3116.3,3115.4,2.2526]
[1720589913449,1.11200561,3116.2,3115.5,1.03845141]
[1720589913776,1.11200561,3116.1,3115.5,1.03845141]
[1720589913975,1.11200561,3116.0,3115.6,0.52169614]
[1720589914179,1.9254,3116.3,3115.6,0.52169614]
[1720589914383,1.11199543,3115.9,3115.6,0.52169614]
[1720589914679,1.92543,3116.2,3115.6,0.52169614]
[1720589914862,1.9253,3116.4,3115.6,0.52169614]
[1720589914863,1.1120028,3116.1,3115.6,0.06417768]
[1720589915178,3.23573,3116.8,3115.6,0.06417768]
[1720589915179,1.1120028,3116.0,3115.6,0.06417768]
[1720589915479,1.1120028,3115.9,3115.6,0.06417768]
[1720589915679,1.92523,3116.5,3115.6,0.06417768]
[1720589915680,1.92524,3116.5,3115.7,4.19641]
[1720589915839,1.11187471,3116.4,3115.8,0.55]
[1720589916043,1.11187471,3116.3,3115.9,0.474641]
[1720589916245,1.11187471,3116.4,3115.9,0.53881448]
[1720589916557,1.11187471,3116.3,3115.9,0.53881448]
[1720589916864,1.92524,3116.5,3115.9,0.53881448]
[1720589917052,1.11183964,3116.4,3115.9,0.53881448]
[1720589917475,1.111838,3116.3,3115.9,0.53881448]
[1720589917778,1.92505,3116.8,3116.0,2.2603]
[1720589917779,1.92513,3116.7,3116.0,2.2603]
[1720589918082,1.11180055,3116.6,3116.1,0.06416744]
[1720589918375,1.11180055,3116.5,3116.2,0.23244674]
[1720589918573,1.11180055,3116.4,3116.3,0.06417038]
[1720589918775,1.92505,3116.8,3116.3,0.06417038]
[1720589918975,1.11174803,3116.7,3116.3,0.06417038]
[1720589919176,1.11174803,3116.6,3116.4,2.2603]
[1720589919479,0.33574573,3117.2,3116.5,0.06416613]
[1720589919687,0.33574573,3117.2,3116.4,4.50542709]
[1720589919688,1.1116288,3117.1,3116.4,4.50542709]
[1720589919847,0.33574573,3117.2,3116.5,1.25744271]
[1720589919848,1.1116288,3117.0,3116.5,1.25744271]
[1720589920038,1.1116288,3116.9,3116.7,2.2603]
[1720589920235,3.31044036,3119.5,3116.8,0.29660479]
[1720589920236,1.92444,3117.8,3116.8,0.29660479]
[1720589920439,1.11149798,3117.7,3116.8,2.22164479]
[1720589920642,1.11149798,3117.7,3116.9,0.70509448]
[1720589920643,1.11143841,3117.6,3116.9,0.70509448]
[1720589920875,1.11143841,3117.5,3117.0,0.06414854]
[1720589921175,1.11143841,3117.4,3117.0,0.06414854]
[1720589921381,1.92435,3118.0,3117.1,2.2603]
[1720589921382,1.92442,3117.9,3117.1,2.2603]
[1720589921674,1.92435,3118.0,3117.1,2.2603]
[1720589921675,1.11140503,3117.8,3117.2,0.22603]
[1720589921841,1.11140503,3117.7,3117.2,0.22603]
[1720589922041,1.11140503,3117.6,3117.3,0.56967877]
[1720589922240,1.11140503,3117.5,3117.3,0.56967877]
[1720589922485,1.1114267,3117.4,3117.2,0.22603]
[1720589922788,1.92457,3117.6,3117.2,0.22603]
[1720589922954,1.11143877,3117.5,3117.2,0.22603]
[1720589923280,1.92457,3117.6,3117.2,0.22603]
[1720589923478,1.92457,3117.6,3117.1,2.2603]
[1720589923479,1.11142769,3117.5,3117.3,0.248633]
[1720589923682,1.92443,3117.9,3117.1,2.2603]
[1720589923983,1.92455,3117.7,3117.1,2.2603]
[1720589924279,1.11141319,3117.6,3117.2,0.22603]
[1720589924480,1.92455,3117.7,3117.2,0.22603]
[1720589924845,1.92457,3117.6,3117.2,0.22603]
[1720589925242,1.92457,3117.6,3117.3,0.248633]
[1720589930407,2.3578,3117.9,3116.8,7.47]
[1720589930547,1.92483,3117.2,3116.8,7.47]
[1720589930743,1.92483,3117.2,3116.9,0.97891]
[1720589931594,1.92483,3117.2,3116.8,7.47]
[1720589931595,1.92494,3117.0,3116.7,2.3191]
[1720589932363,1.92446,3117.8,3116.7,2.3191]
[1720589932564,1.92494,3117.0,3116.7,2.55101]
[1720589934699,1.92499,3116.9,3116.7,2.55101]
[1720589935486,1.92505,3116.8,3116.7,2.55101]
[1720589935664,1.92505,3116.8,3116.7,2.3191]
[1720589936178,1.92505,3116.8,3116.4,7.47]
[1720589937080,0.33575369,3116.7,3116.4,7.47]
[1720589937253,0.33575369,3116.7,3116.3,4.835]
[1720589937788,2.26087369,3116.7,3116.3,4.835]
[1720589938170,2.26087369,3116.7,3116.3,5.3185]
[1720589940377,1.92517,3116.6,3116.3,5.3185]
[1720589940700,2.26086369,3116.7,3116.3,5.3185]
[1720589940885,0.33575369,3116.7,3116.3,5.3185]
[1720589941081,0.33575369,3116.7,3116.4,0.5960168]
[1720589941592,0.33575369,3116.7,3116.4,0.53185]
[1720589942992,0.33575369,3116.7,3116.5,0.06416513]
[1720589943196,0.33575369,3116.7,3116.4,0.59600423]
[1720589943427,0.33575369,3116.7,3116.4,0.53185]
[1720589943593,0.33575369,3116.7,3116.5,0.729219]
[1720589946312,0.33575369,3116.7,3116.6,0.06415968]
[1720589947425,1.92462,3117.5,3116.7,2.4736]
[1720589947718,1.11144447,3117.4,3116.8,2.63315165]
[1720589947923,1.11144447,3117.3,3116.9,0.51067517]
[1720589949237,1.92469,3117.4,3116.9,0.51067517]
[1720589949398,1.11147377,3117.2,3117.0,0.06415275]
[1720589949599,1.92469,3117.4,3117.0,0.31438279]
[1720589949600,1.11147377,3117.1,3117.0,0.31438279]
[1720589949794,1.11147377,3117.3,3117.0,0.31438279]
[1720589950019,1.11147377,3117.2,3117.0,0.37853792]
[1720589950227,1.11147377,3117.1,3117.0,0.37853792]
[1720589950532,1.11147377,3117.1,3117.0,2.59818279]
[1720589950738,1.92443,3117.8,3117.0,3.14818279]
[1720589950909,1.11128702,3117.7,3117.1,0.38144549]
[1720589951115,1.11128702,3117.6,3117.1,0.38144549]
[1720589951312,1.92443,3117.8,3117.1,0.38144549]
[1720589951313,1.11128702,3117.5,3117.2,0.29796283]
[1720589951511,1.11128702,3117.4,3117.2,0.29796283]
[1720589951713,1.11128702,3117.6,3117.2,0.29796283]
[1720589951916,1.11128702,3117.5,3117.2,0.29796283]
[1720589952118,1.11128702,3117.6,3117.2,0.29796283]
[1720589952318,1.11128702,3117.6,3116.7,1.92508]
[1720589952319,1.92469,3117.4,3116.6,2.4516]
[1720589952655,1.92469,3117.4,3116.6,5.4516]
[1720589952656,1.92494,3117.0,3116.6,5.4516]
[1720589952943,1.11155122,3116.9,3116.6,2.4516]
[1720589953232,1.11155122,3116.8,3116.6,2.4516]
[1720589953438,1.11155122,3116.9,3116.6,3.70066]
[1720589954977,1.92518,3116.6,3116.4,7.47]
[1720589955153,3.03678122,3116.5,3116.4,7.47]
[1720589955338,3.03678122,3116.5,3115.9,7.47]
[1720589955339,1.92536,3116.3,3115.9,7.47]
[1720589955538,1.92536,3116.3,3115.0,1.92616]
[1720589955539,1.9256,3115.9,3115.5,7.47]
[1720589955879,1.11191554,3115.8,3115.5,7.47]
[1720589958777,1.9256,3115.9,3115.5,7.47]
[1720589958954,1.11193572,3115.8,3115.5,7.47]
[1720589959280,1.9256,3115.9,3115.6,0.99657]
[1720589959581,1.11197815,3115.8,3115.6,0.99657]
[1720589959887,1.9256,3115.9,3115.6,0.99657]
[1720589960081,1.11198428,3115.8,3115.6,0.99657]
[1720589960247,1.9256,3115.9,3115.6,0.99657]
[1720589960443,1.11195423,3115.8,3115.6,0.99657]
[1720589960647,1.9256,3115.9,3115.6,0.99657]
[1720589961274,1.9256,3115.9,3115.4,2.4957]
[1720589961979,1.9256,3115.9,3115.2,10.039]
[1720589961980,2.2811,3116.4,3115.2,10.039]
[1720589962276,2.2811,3116.4,3115.2,2.569]
[1720589962277,1.92586,3115.5,3115.2,2.569]
[1720589962588,1.92592,3115.4,3115.2,2.569]
[1720589962787,1.92597,3115.3,3115.2,0.48913]
[1720589963002,1.92597,3115.3,3115.0,2.3223]
[1720589963303,1.92593,3115.4,3115.0,2.3223]
[1720589963790,1.92593,3115.4,3115.1,0.53223]
[1720589964101,1.11215631,3115.3,3114.8,10.039]
[1720589964267,1.9261,3115.1,3114.8,7.47]
[1720589966487,1.9261,3115.1,3114.8,10.039]
[1720589966687,1.9261,3115.1,3114.9,1.0039]
[1720589967253,1.9261,3115.1,3114.8,2.569]
[1720589970387,1.92585,3115.5,3114.8,2.569]
[1720589970693,1.92593,3115.4,3114.9,0.06419161]
[1720589970898,1.92593,3115.4,3115.0,0.26331916]
[1720589971051,1.92598,3115.3,3115.0,0.26331916]
[1720589971257,1.92598,3115.3,3114.8,2.569]
[1720589972013,1.92604,3115.2,3114.8,2.569]
[1720589972372,1.92622,3114.9,3114.8,2.569]
[1720589972566,1.92592,3115.4,3114.5,2.3223]
[1720589972567,1.92629,3114.8,3114.5,2.3223]
[1720589973090,1.92641,3114.6,3114.5,2.3223]
[1720589973711,1.92653,3114.4,3114.3,0.1131031]
[1720589974210,3.85306,3114.4,3114.3,0.1131031]
[1720589979520,5.77959,3114.4,3114.3,0.1131031]
[1720589980206,3.85306,3114.4,3114.3,0.1131031]
[1720589982202,4.9657392,3114.4,3114.3,0.1131031]
[1720589982446,7.58149012,3114.4,3114.3,0.1131031]
[1720589982920,7.58155764,3114.4,3114.3,0.1131031]
[1720589983350,7.58156146,3114.4,3114.3,0.1131031]
[1720589983902,6.46881092,3114.4,3114.3,0.1131031]
[1720589984116,7.58154809,3114.4,3114.3,0.1131031]
[1720589986121,7.91737871,3114.4,3114.3,0.1131031]
[1720589987526,10.36317871,3114.4,3114.3,0.1131031]
[1720589987955,13.36317871,3114.4,3114.3,0.1131031]
[1720589989544,12.25041621,3114.4,3114.3,0.1131031]
[1720589989748,13.36322626,3114.4,3114.3,0.1131031]
[1720589991147,7.74747534,3114.4,3114.3,0.1131031]
[1720589992461,9.67400534,3114.4,3114.3,0.1131031]
[1720589992849,9.67395448,3114.4,3114.3,0.1131031]
[1720589994037,7.22819058,3114.4,3114.3,0.1131031]
[1720589995383,5.30166058,3114.4,3114.3,0.1131031]
[1720589998494,5.83182664,3114.4,3114.3,0.1131031]
[1720589999404,6.64556135,3114.4,3114.3,0.1131031]
[1720589999615,5.8317704,3114.4,3114.3,0.1131031]
[1720589999772,5.30160434,3114.4,3114.3,0.1131031]
[1720590001867,6.11539529,3114.4,3114.3,0.1131031]
[1720590002068,7.22811047,3114.4,3114.3,0.1131031]
[1720590002384,7.2281203,3114.4,3114.3,0.1131031]
[1720590003614,9.5606203,3114.4,3114.3,0.1131031]
[1720590003769,10.70933133,3114.4,3114.3,0.1131031]
[1720590004182,12.63586133,3114.4,3114.3,0.1131031]
[1720590004629,16.18586133,3114.4,3114.3,0.1131031]
[1720590004801,17.07922419,3114.4,3114.3,0.1131031]
[1720590005185,17.07956341,3114.4,3114.3,0.1131031]
[1720590007438,17.07956341,3114.4,3113.5,7.47]
[1720590007728,17.07956341,3114.4,3108.6,61.05]
[1720590007729,1.92758,3112.7,3112.6,2.4417]
[1720590008025,1.92758,3112.7,3111.5,1.00617848]
[1720590008026,1.92773,3112.5,3111.8,2.4417]
[1720590008246,1.99129133,3113.5,3111.8,2.4417]
[1720590008247,3.04066247,3112.4,3111.8,2.4417]
[1720590008385,1.92712,3113.5,3111.8,2.4417]
[1720590008386,1.92802,3112.0,3111.8,2.4417]
[1720590008892,1.92792,3112.2,3111.8,2.4417]
[1720590009087,3.04128039,3112.1,3111.8,2.4417]
[1720590009304,1.92789,3112.3,3111.9,0.09417]
[1720590009305,3.04134039,3112.0,3111.9,0.09417]
[1720590009610,1.92802,3112.0,3111.9,0.09417]
[1720590010700,1.92791,3112.2,3111.9,0.09417]
[1720590010929,1.92789,3112.3,3112.0,0.253587]
[1720590011131,1.92798,3112.1,3112.0,0.253587]
[1720590011329,1.92789,3112.3,3112.0,2.678587]
[1720590011541,2.3794,3112.6,3111.1,5.1071031]
[1720590011700,1.92843,3111.4,3111.1,2.5381031]
[1720590012000,1.92843,3111.4,3111.2,0.25381031]
[1720590012797,1.92845,3111.3,3111.2,0.25381031]
[1720590014431,1.9284,3111.4,3111.2,0.25381031]
[1720590014603,1.9284,3111.4,3111.3,0.27919134]
[1720590015204,1.92821,3111.7,3111.3,0.27919134]
[1720590015429,1.92835,3111.5,3111.3,0.27919134]
[1720590016010,1.92815,3111.8,3111.3,0.27919134]
[1720590016547,1.92851,3111.2,3111.1,2.5381031]
[1720590017423,1.92851,3111.2,3111.1,0.1131031]
[1720590017829,2.3676,3113.1,3111.2,2.4706]
[1720590018058,1.11337749,3112.6,3111.6,1.92825]
[1720590018236,2.3676,3113.5,3111.9,2.4706]
[1720590018237,1.92746,3113.0,3111.9,2.4706]
[1720590018446,1.92746,3113.0,3111.9,2.53485348]
[1720590018726,1.92779,3112.4,3111.9,2.4706]
[1720590018940,1.92779,3112.4,3112.0,0.50396]
[1720590019870,1.92746,3113.0,3111.9,2.4706]
[1720590019871,1.92798,3112.1,3111.9,2.4706]
[1720590020383,1.92798,3112.1,3111.5,0.28916339]
[1720590020384,1.92809,3111.9,3111.5,2.70106339]
[1720590020676,1.99177133,3112.7,3111.1,0.1131031]
[1720590020677,1.92829,3111.6,3111.1,2.5250031]
[1720590020831,1.92846,3111.3,3111.1,2.5250031]
[1720590021169,1.92846,3111.3,3111.1,2.77750341]
[1720590021331,1.92846,3111.3,3111.1,2.5250031]
[1720590022577,1.92851,3111.2,3111.1,2.5250031]
[1720590024288,1.92851,3111.2,3111.1,0.1131031]
[1720590024431,1.92833,3111.5,3111.1,0.1131031]
[1720590024746,1.9284,3111.4,3111.1,0.1131031]
[1720590025131,1.92851,3111.2,3111.1,0.1131031]
[1720590027628,0.3358516,3113.2,3111.1,0.1131031]
[1720590027629,1.92805,3112.0,3111.1,0.1131031]
[1720590027834,1.92844,3111.4,3111.1,0.1131031]
[1720590028243,1.92818,3111.8,3111.1,0.1131031]
[1720590029182,1.92849,3111.3,3111.1,0.1131031]
[1720590030600,1.92851,3111.2,3111.1,0.1131031]
[1720590031165,3.3492791,3112.1,3111.1,0.1131031]
[1720590031166,1.92839,3111.4,3111.1,0.1131031]
[1720590031493,1.92839,3111.4,3111.1,2.5049031]
[1720590032170,1.92839,3111.4,3111.1,2.75539341]
[1720590032667,1.92839,3111.4,3111.2,0.06427744]
[1720590033071,1.92839,3111.4,3111.1,2.75539341]
[1720590033473,1.92839,3111.4,3111.2,0.0642771]
[1720590033686,1.92827,3111.6,3111.2,0.0642771]
[1720590033872,2.22732798,3113.4,3111.2,0.0642771]
[1720590033873,1.92806,3112.0,3111.3,2.67376705]
[1720590034055,1.92806,3112.0,3111.4,0.06426326]
[1720590034758,1.92809,3111.9,3111.4,0.06426326]
[1720590034961,1.92809,3111.9,3111.3,2.67376705]
[1720590034962,1.92827,3111.6,3111.3,2.67376705]
[1720590036491,1.92839,3111.4,3111.3,2.3918]
[1720590038352,1.92849,3111.3,3111.1,0.1131031]
[1720590038560,1.92833,3111.5,3111.1,0.37263341]
[1720590038971,1.11354095,3111.4,3111.1,0.37263341]
[1720590039284,1.92833,3111.5,3111.1,0.37263341]
[1720590039487,1.11354152,3111.4,3111.1,0.37263341]
[1720590039695,1.92803,3112.0,3111.3,2.3512]
[1720590039900,1.92803,3112.0,3111.4,0.06426598]
[1720590039901,1.1134925,3111.9,3111.4,0.06426598]
[1720590040138,1.1134925,3111.8,3111.3,2.3512]
[1720590040489,1.92834,3111.5,3111.3,2.3512]
[1720590041627,1.92839,3111.4,3111.3,2.3512]
[1720590041929,3.04190943,3111.4,3111.3,2.3512]
[1720590043303,1.11351943,3111.4,3111.3,2.3512]
[1720590043491,1.11351943,3111.4,3111.3,2.59763031]
[1720590043825,3.04190943,3111.4,3111.3,2.59763031]
[1720590044334,3.04190991,3111.4,3111.3,2.59763031]
[1720590045014,3.04190991,3111.4,3111.1,0.1131031]
[1720590045252,1.11351991,3111.3,3111.1,0.1131031]
[1720590045724,3.04196991,3111.3,3111.1,0.1131031]
[1720590045925,1.92845,3111.3,3111.1,0.1131031]
[1720590046529,1.92851,3111.2,3111.1,0.1131031]
[1720590046747,3.04210254,3111.2,3111.1,0.1131031]
[1720590047420,1.92851,3111.2,3111.1,0.1131031]
[1720590047605,3.04211435,3111.2,3111.1,0.1131031]
[1720590048720,4.97062435,3111.2,3111.1,0.1131031]
[1720590050950,4.97071006,3111.2,3111.1,0.1131031]
[1720590051120,3.85702,3111.2,3111.1,0.1131031]
[1720590051324,4.97079158,3111.2,3111.1,0.1131031]
[1720590051943,3.85702,3111.2,3111.1,0.1131031]
[1720590052146,4.97080788,3111.2,3111.1,0.1131031]
[1720590053339,5.85227838,3111.2,3111.1,0.1131031]
[1720590054098,4.97077989,3111.2,3111.1,0.1131031]
[1720590057559,5.85168483,3111.2,3111.1,0.1131031]
[1720590058340,6.62969331,3111.2,3111.1,0.1131031]
[1720590059799,10.92140331,3111.2,3111.1,0.1131031]
[1720590060287,13.92140331,3111.2,3111.1,0.1131031]
[1720590060575,11.92673848,3111.2,3111.1,0.1131031]
[1720590060776,13.92138675,3111.2,3111.1,0.1131031]
[1720590061187,13.92131236,3111.2,3111.1,0.1131031]
[1720590061387,10.78010388,3111.2,3111.1,0.1131031]
[1720590061588,5.85159388,3111.2,3111.1,0.1131031]
[1720590061886,5.85148937,3111.2,3111.1,0.1131031]
[1720590063037,7.77999937,3111.2,3111.1,0.1131031]
[1720590063285,8.75075975,3111.2,3111.1,0.1131031]
[1720590063470,13.67926975,3111.2,3111.1,0.1131031]
[1720590066497,13.67937822,3111.2,3111.1,0.1131031]
[1720590069061,18.85141441,3111.2,3111.1,3.1e-06]
[1720590069261,3.85864,3109.9,3109.8,4.3916251]
[1720590069528,1.92944,3109.7,3109.6,2.3461]
[1720590069905,1.92958,3109.5,3109.2,2.3366]
[1720590070064,1.92958,3109.5,3109.3,0.67282251]
[1720590070398,1.92986,3109.1,3108.8,0.25]
[1720590070599,3.04393833,3109.4,3108.8,0.25]
[1720590070600,1.92964,3109.4,3108.9,2.3366]
[1720590070902,1.92958,3109.5,3109.0,0.25866]
[1720590071204,1.92958,3109.5,3109.0,0.32297567]
[1720590071360,1.92958,3109.5,3109.1,0.26595757]
[1720590072201,1.92938,3109.8,3109.2,4.9916]
[1720590073421,1.92953,3109.6,3109.2,2.4226]
[1720590073582,1.92958,3109.5,3109.3,0.24226]
[1720590073790,1.92969,3109.3,3109.2,2.4226]
[1720590074281,1.92958,3109.5,3109.2,2.4226]
[1720590074486,1.92964,3109.4,3109.2,2.4226]
[1720590074684,1.92969,3109.3,3109.2,2.66486]
[1720590074928,1.92969,3109.3,3109.2,2.4226]
[1720590075901,3.85988,3108.9,3108.8,0.25]
[1720590076292,6.90439908,3108.9,3108.8,0.25]
[1720590076639,7.59483899,3108.9,3108.8,0.25]
[1720590077221,3.86086,3108.1,3107.3,2.4137]
[1720590077419,3.86086,3108.1,3107.4,2.4137]
[1720590077420,4.97543908,3108.1,3107.4,2.4137]
[1720590077619,3.86086,3108.1,3107.4,2.4137]
[1720590077793,3.86086,3108.1,3107.4,2.47804957]
[1720590078115,3.86086,3108.1,3107.4,2.4137]
[1720590078319,5.79297,3107.2,3107.1,0.09921756]
[1720590078504,3.86198,3107.2,3107.1,0.04921756]
[1720590078723,1.93099,3107.2,3107.1,0.04921756]
[1720590079250,1.93096,3107.3,3107.1,0.04921756]
[1720590080437,1.92957,3109.5,3107.1,0.04921756]
[1720590080616,1.9292,3110.1,3107.2,2.569]
[1720590080617,1.93045,3108.1,3107.2,2.569]
[1720590080838,1.92998,3108.9,3107.4,2.317]
[1720590080839,1.93031,3108.3,3107.4,2.317]
[1720590081042,1.93037,3108.2,3107.5,0.61434135]
[1720590081202,1.93037,3108.2,3107.6,0.59313414]
[1720590081395,1.93037,3108.2,3107.7,0.06434371]
[1720590081928,1.93025,3108.4,3107.7,0.06434371]
[1720590082294,1.93002,3108.8,3107.8,2.46734166]
[1720590082499,1.92958,3109.5,3108.4,2.403]
[1720590082804,1.92965,3109.4,3108.5,0.56152506]
[1720590083113,1.92958,3109.5,3108.5,0.56152506]
[1720590083114,1.92971,3109.3,3108.5,0.56152506]
[1720590083316,1.92965,3109.4,3108.6,0.59645251]
[1720590083516,1.92953,3109.6,3108.7,2.63332481]
[1720590083734,1.92953,3109.6,3108.8,3.93729426]
[1720590083896,1.92912,3110.3,3108.8,3.87297773]
[1720590083897,1.92957,3109.5,3108.8,3.87297773]
[1720590084101,1.92957,3109.5,3108.8,3.93729558]
[1720590084394,1.9294,3109.8,3108.9,0.65062956]
[1720590084610,1.9294,3109.8,3109.0,0.55]
[1720590085015,1.9294,3109.8,3108.9,0.65062956]
[1720590085316,1.92969,3109.3,3108.9,0.65062956]
[1720590085536,1.92969,3109.3,3108.3,9.7609151]
[1720590085537,1.92969,3109.3,3108.5,3.0]
[1720590086036,1.92958,3109.5,3108.5,3.0]
[1720590086249,1.92958,3109.5,3108.5,4.93015]
[1720590086543,1.92964,3109.4,3108.5,4.93015]
[1720590086747,1.9297,3109.3,3108.6,0.733315]
[1720590087044,1.92946,3109.7,3108.7,0.06432236]
[1720590087239,1.92946,3109.7,3108.6,1.9301]
[1720590087410,1.92946,3109.7,3108.5,3.06431731]
[1720590087411,1.92939,3109.8,3108.7,4.54632731]
[1720590087616,1.92939,3109.8,3108.8,4.92999]
[1720590087813,1.92939,3109.8,3108.9,0.55]
[1720590088121,1.92939,3109.8,3108.9,2.47993]
[1720590088345,3.85882,3109.8,3109.0,0.55442434]
[1720590088518,1.92945,3109.7,3109.0,0.55442434]
[1720590089034,1.92958,3109.5,3109.0,0.55442434]
[1720590089238,1.92954,3109.6,3109.0,0.55442434]
[1720590089614,1.92932,3109.9,3109.0,0.61874113]
[1720590090152,1.92932,3109.9,3109.1,2.4964]
[1720590090316,1.92913,3110.2,3109.1,2.4964]
[1720590090516,1.9292,3110.1,3109.2,2.78482243]
[1720590092251,1.92889,3110.6,3109.5,5.36856]
[1720590092554,1.92878,3110.8,3109.8,1.92938]
[1720590092855,1.92858,3111.1,3110.3,3.439]
[1720590093157,1.92858,3111.1,3110.4,0.3439]
[1720590093516,1.92845,3111.3,3110.4,0.3439]
[1720590093743,1.92853,3111.2,3110.4,0.3439]
[1720590093951,1.92853,3111.2,3110.5,0.06428568]
[1720590094128,1.92834,3111.5,3110.6,2.3334]
[1720590094338,1.92834,3111.5,3110.7,0.426233]
[1720590094518,1.92845,3111.3,3110.7,0.426233]
[1720590095629,1.92857,3111.2,3110.7,0.426233]
[1720590095864,1.92821,3111.7,3110.6,2.3334]
[1720590096019,1.92853,3111.2,3110.6,2.3334]
[1720590096932,1.92836,3111.5,3110.7,0.55]
[1720590097850,0.33613767,3111.9,3110.6,2.56674]
[1720590097851,1.92852,3111.2,3110.6,2.56674]
[1720590098150,1.92852,3111.2,3110.6,2.3334]
[1720590098368,1.9287,3110.9,3110.6,2.3334]
[1720590098565,1.92852,3111.2,3110.6,2.3334]
[1720590099119,1.92839,3111.4,3110.6,2.3334]
[1720590099351,1.92839,3111.4,3110.7,0.23334]
[1720590099971,0.06417133,3112.0,3110.7,0.23334]
[1720590099972,1.92846,3111.3,3110.7,0.23334]
[1720590100393,1.92861,3111.1,3110.6,2.3334]
[1720590101094,1.92831,3111.6,3110.6,2.3334]
[1720590101262,1.92845,3111.4,3110.6,2.3334]
[1720590101462,1.92845,3111.4,3110.7,0.726234]
[1720590102876,1.92846,3111.3,3110.7,0.726234]
[1720590103091,1.92846,3111.3,3110.6,2.3334]
[1720590103620,1.92858,3111.1,3110.6,2.3334]